[Event "Live Chess"]
[Site "Chess.com"]
[Date "2023.05.21"]
[Round "-"]
[White "raminguy"]
[Black "JanMur7"]
[Result "1-0"]
[WhiteElo "1977"]
[BlackElo "1978"]
[TimeControl "300"]
[EndTime "3:51:17 PDT"]
[Termination "raminguy won by checkmate"]

1. d3 {[%clk 0:04:56.5]} 1... d5 {[%clk 0:04:57]} 2. e4 {[%clk 0:04:53.8]} 2...
dxe4 {[%clk 0:04:56.9]} 3. Nc3 {[%clk 0:04:52.5]} 3... exd3 {[%clk 0:04:54.9]}
4. Bxd3 {[%clk 0:04:52.4]} 4... Nf6 {[%clk 0:04:51.7]} 5. Nge2 {[%clk
0:04:51.1]} 5... Nc6 {[%clk 0:04:45.2]} 6. O-O {[%clk 0:04:50.1]} 6... e6 {[%clk
0:04:43.6]} 7. Bg5 {[%clk 0:04:47.9]} 7... Be7 {[%clk 0:04:42.9]} 8. Qe1 {[%clk
0:04:45.4]} 8... h6 {[%clk 0:04:41.7]} 9. Bf4 {[%clk 0:04:41.6]} 9... Bd6 {[%clk
0:04:35.5]} 10. Be3 {[%clk 0:04:39.7]} 10... O-O {[%clk 0:04:32.9]} 11. Rd1
{[%clk 0:04:37.6]} 11... Ne5 {[%clk 0:04:31.7]} 12. Bb5 {[%clk 0:04:33.5]} 12...
a6 {[%clk 0:04:28.1]} 13. Ba4 {[%clk 0:04:31.1]} 13... b5 {[%clk 0:04:27.3]} 14.
Bb3 {[%clk 0:04:28.9]} 14... Bb7 {[%clk 0:04:26.5]} 15. Bf4 {[%clk 0:04:27.1]}
15... Nfg4 {[%clk 0:04:16.1]} 16. h3 {[%clk 0:04:23.6]} 16... Qh4 {[%clk
0:03:45.1]} 17. hxg4 {[%clk 0:04:17.5]} 17... Nxg4 {[%clk 0:03:42.6]} 18. Rxd6
{[%clk 0:04:03.3]} 18... cxd6 {[%clk 0:03:38.8]} 19. Bxd6 {[%clk 0:04:00.6]}
19... Rad8 {[%clk 0:03:33.4]} 20. Bg3 {[%clk 0:03:58.4]} 20... Qh5 {[%clk
0:03:30.5]} 21. Nf4 {[%clk 0:03:51.5]} 21... Qg5 {[%clk 0:03:25.4]} 22. Ne4
{[%clk 0:03:44.2]} 22... Bxe4 {[%clk 0:03:22.6]} 23. Qxe4 {[%clk 0:03:42.7]}
23... h5 {[%clk 0:03:20]} 24. c3 {[%clk 0:03:36.7]} 24... h4 {[%clk 0:03:13.7]}
25. Nh3 {[%clk 0:03:06.8]} 25... Qh5 {[%clk 0:03:03.5]} 26. Bh2 {[%clk
0:02:52.1]} 26... Nxh2 {[%clk 0:02:44.2]} 27. Kxh2 {[%clk 0:02:49.5]} 27... Rd2
{[%clk 0:02:34.6]} 28. Re1 {[%clk 0:01:35.5]} 28... Rxb2 {[%clk 0:02:22.7]} 29.
Qd4 {[%clk 0:01:23]} 29... Qh6 {[%clk 0:02:07.2]} 30. Re4 {[%clk 0:01:19.6]}
30... Qd2 {[%clk 0:01:39.8]} 31. Rxh4 {[%clk 0:01:14.6]} 31... Qxd4 {[%clk
0:01:36.9]} 32. Rxd4 {[%clk 0:01:14.5]} 32... Rc8 {[%clk 0:01:34]} 33. Rd6
{[%clk 0:01:09.1]} 33... a5 {[%clk 0:01:27.7]} 34. Rb6 {[%clk 0:00:48.7]} 34...
a4 {[%clk 0:01:23.1]} 35. Bxa4 {[%clk 0:00:47]} 35... Rxa2 {[%clk 0:01:00.5]}
36. Bxb5 {[%clk 0:00:45.6]} 36... Rxc3 {[%clk 0:00:59]} 37. Rb8+ {[%clk
0:00:36.7]} 37... Kh7 {[%clk 0:00:57.2]} 38. Rb7 {[%clk 0:00:31.7]} 38... Kg6
{[%clk 0:00:50.1]} 39. Be8 {[%clk 0:00:27.2]} 39... e5 {[%clk 0:00:37.7]} 40.
Bxf7+ {[%clk 0:00:24.8]} 40... Kh6 {[%clk 0:00:37.6]} 41. Bxa2 {[%clk
0:00:23.9]} 41... Rc1 {[%clk 0:00:32.9]} 42. Rb5 {[%clk 0:00:19.6]} 42... Rc6
{[%clk 0:00:32.1]} 43. Bd5 {[%clk 0:00:17.4]} 43... Rf6 {[%clk 0:00:31.3]} 44.
Be4 {[%clk 0:00:16.4]} 44... Rd6 {[%clk 0:00:29.5]} 45. Rxe5 {[%clk 0:00:15.6]}
45... g6 {[%clk 0:00:27.9]} 46. Bd5 {[%clk 0:00:14.4]} 46... Rf6 {[%clk
0:00:26.5]} 47. Re6 {[%clk 0:00:13.6]} 47... Rf5 {[%clk 0:00:24.3]} 48. Be4
{[%clk 0:00:12.5]} 48... Ra5 {[%clk 0:00:20.1]} 49. Rxg6+ {[%clk 0:00:11.6]}
49... Kh7 {[%clk 0:00:19.1]} 50. Ra6+ {[%clk 0:00:10.1]} 50... Kh8 {[%clk
0:00:19]} 51. Rxa5 {[%clk 0:00:09.5]} 51... Kg7 {[%clk 0:00:18.7]} 52. Ra7+
{[%clk 0:00:09.4]} 52... Kf8 {[%clk 0:00:18.6]} 53. g3 {[%clk 0:00:08.6]} 53...
Kg8 {[%clk 0:00:17.8]} 54. Kg2 {[%clk 0:00:08.5]} 54... Kf8 {[%clk 0:00:17.7]}
55. Kf3 {[%clk 0:00:08.3]} 55... Kg8 {[%clk 0:00:17.6]} 56. Kg4 {[%clk
0:00:08.2]} 56... Kf8 {[%clk 0:00:17.1]} 57. Kf5 {[%clk 0:00:08.1]} 57... Ke8
{[%clk 0:00:17]} 58. Ke6 {[%clk 0:00:07.7]} 58... Kd8 {[%clk 0:00:16.9]} 59. Kd6
{[%clk 0:00:07.2]} 59... Kc8 {[%clk 0:00:16.8]} 60. Rg7 {[%clk 0:00:06.6]} 60...
Kb8 {[%clk 0:00:16.7]} 61. Kc6 {[%clk 0:00:06.1]} 61... Kc8 {[%clk 0:00:16.6]}
62. Rg8# {[%clk 0:00:04.5]} 1-0

[Event "Live Chess"]
[Site "Chess.com"]
[Date "2023.05.21"]
[Round "-"]
[White "Abde2012"]
[Black "sup3rm0nk3y"]
[Result "0-1"]
[WhiteElo "751"]
[BlackElo "1320"]
[TimeControl "300"]
[EndTime "3:51:30 PDT"]
[Termination "sup3rm0nk3y won by resignation"]

1. d4 {[%clk 0:04:57.1]} 1... d5 {[%clk 0:04:58.6]} 2. c4 {[%clk 0:04:55.9]}
2... dxc4 {[%clk 0:04:52.6]} 3. e3 {[%clk 0:04:53.9]} 3... Be6 {[%clk
0:04:49.4]} 4. b3 {[%clk 0:04:51]} 4... cxb3 {[%clk 0:04:48.1]} 5. axb3 {[%clk
0:04:49.1]} 5... Nc6 {[%clk 0:04:46]} 6. Bc4 {[%clk 0:04:46.3]} 6... Bxc4 {[%clk
0:04:44.7]} 7. bxc4 {[%clk 0:04:44.9]} 7... Qd7 {[%clk 0:04:43]} 8. d5 {[%clk
0:04:43.5]} 8... Ne5 {[%clk 0:04:41.7]} 9. Bb2 {[%clk 0:04:39.9]} 9... Nxc4
{[%clk 0:04:38.9]} 10. Bc3 {[%clk 0:04:32.9]} 10... O-O-O {[%clk 0:04:36.5]} 11.
e4 {[%clk 0:04:29.6]} 11... f5 {[%clk 0:04:34.5]} 12. exf5 {[%clk 0:04:27.6]}
12... Qxd5 {[%clk 0:04:33.3]} 13. Qxd5 {[%clk 0:04:25.3]} 13... Rxd5 {[%clk
0:04:32.1]} 14. Na3 {[%clk 0:04:21.6]} 14... Nxa3 {[%clk 0:04:30.1]} 15. Rxa3
{[%clk 0:04:21.1]} 15... Rxf5 {[%clk 0:04:28]} 16. Rxa7 {[%clk 0:04:19]} 16...
Kb8 {[%clk 0:04:26.5]} 17. Bd4 {[%clk 0:04:14.8]} 17... e5 {[%clk 0:04:22.3]}
18. Be3 {[%clk 0:04:10.4]} 18... Bb4+ {[%clk 0:04:16.9]} 19. Ke2 {[%clk
0:04:06.5]} 19... Nf6 {[%clk 0:04:15.6]} 20. Nf3 {[%clk 0:04:00.4]} 20... Nd5
{[%clk 0:04:13.5]} 21. Ra4 {[%clk 0:03:53.4]} 21... Nxe3 {[%clk 0:04:08.2]} 22.
Rxb4 {[%clk 0:03:50.9]} 22... Nc2 {[%clk 0:04:02.8]} 23. Rg4 {[%clk 0:03:43.8]}
23... g6 {[%clk 0:03:56.2]} 24. Rc1 {[%clk 0:03:39.4]} 24... Nd4+ {[%clk
0:03:52.4]} 25. Nxd4 {[%clk 0:03:37.7]} 25... exd4 {[%clk 0:03:51.6]} 26. Rxd4
{[%clk 0:03:36.2]} 26... Re8+ {[%clk 0:03:50.8]} 27. Kf1 {[%clk 0:03:32.4]}
27... Ra5 {[%clk 0:03:45.1]} 28. Rdd1 {[%clk 0:03:23]} 28... Ra2 {[%clk
0:03:42.8]} 29. Ra1 {[%clk 0:03:20.2]} 29... Rxa1 {[%clk 0:03:34.6]} 30. Rxa1
{[%clk 0:03:19.1]} 30... b5 {[%clk 0:03:33.4]} 31. Rb1 {[%clk 0:03:17.2]} 31...
c6 {[%clk 0:03:31.9]} 32. Rc1 {[%clk 0:03:14.8]} 32... Kc7 {[%clk 0:03:31.1]}
33. g4 {[%clk 0:03:11.6]} 33... Kb6 {[%clk 0:03:30.2]} 34. f4 {[%clk 0:03:10.8]}
34... c5 {[%clk 0:03:27.4]} 35. h4 {[%clk 0:03:08]} 35... b4 {[%clk 0:03:25.7]}
36. Rc4 {[%clk 0:03:05.7]} 36... Kb5 {[%clk 0:03:24.5]} 37. Rc1 {[%clk
0:03:03.7]} 37... c4 {[%clk 0:03:23.8]} 38. h5 {[%clk 0:03:02.7]} 38... gxh5
{[%clk 0:03:22.5]} 39. gxh5 {[%clk 0:03:01.5]} 39... Rf8 {[%clk 0:03:20.8]} 40.
Kg2 {[%clk 0:02:57.6]} 40... Rxf4 {[%clk 0:03:19.7]} 41. Kg3 {[%clk 0:02:57.2]}
41... Rd4 {[%clk 0:03:14.6]} 42. Kf3 {[%clk 0:02:53]} 42... b3 {[%clk
0:03:13.7]} 43. Ke3 {[%clk 0:02:52.4]} 43... Rh4 {[%clk 0:03:12.5]} 44. Rb1
{[%clk 0:02:48.3]} 44... Rxh5 {[%clk 0:03:10.8]} 45. Kd4 {[%clk 0:02:44.9]}
45... Rh4+ {[%clk 0:03:09.4]} 46. Kc3 {[%clk 0:02:43.4]} 46... Rh3+ {[%clk
0:03:06.9]} 47. Kd4 {[%clk 0:02:40.1]} 47... Kb4 {[%clk 0:03:06.1]} 48. Rc1
{[%clk 0:02:37.6]} 48... c3 {[%clk 0:03:04.2]} 49. Ke4 {[%clk 0:02:26]} 49... b2
{[%clk 0:03:02]} 50. Rb1 {[%clk 0:02:23.9]} 50... Kb3 {[%clk 0:03:00.9]} 0-1

[Event "Live Chess"]
[Site "Chess.com"]
[Date "2023.05.21"]
[Round "-"]
[White "Tiltador"]
[Black "MJMykh"]
[Result "1-0"]
[WhiteElo "907"]
[BlackElo "1125"]
[TimeControl "300"]
[EndTime "3:51:47 PDT"]
[Termination "Tiltador won by checkmate"]

1. e4 {[%clk 0:04:57.4]} 1... e5 {[%clk 0:04:59.3]} 2. Nf3 {[%clk 0:04:56.1]}
2... Nc6 {[%clk 0:04:58.1]} 3. d3 {[%clk 0:04:54]} 3... Nf6 {[%clk 0:04:56.2]}
4. Be2 {[%clk 0:04:52.9]} 4... Bc5 {[%clk 0:04:54.7]} 5. O-O {[%clk 0:04:51.3]}
5... Ng4 {[%clk 0:04:54.2]} 6. Be3 {[%clk 0:04:48.1]} 6... Bxe3 {[%clk
0:04:50.6]} 7. h3 {[%clk 0:04:39.1]} 7... Nxf2 {[%clk 0:04:46.6]} 8. Rxf2 {[%clk
0:04:33.6]} 8... Bxf2+ {[%clk 0:04:45.6]} 9. Kxf2 {[%clk 0:04:32.8]} 9... O-O
{[%clk 0:04:44.6]} 10. g4 {[%clk 0:04:30.2]} 10... d6 {[%clk 0:04:43.4]} 11. Kg3
{[%clk 0:04:29]} 11... Qf6 {[%clk 0:04:38.5]} 12. Nc3 {[%clk 0:04:26.5]} 12...
Qf4+ {[%clk 0:04:37.3]} 13. Kg2 {[%clk 0:04:23.5]} 13... Nd4 {[%clk 0:04:32.5]}
14. Nxd4 {[%clk 0:04:09.7]} 14... exd4 {[%clk 0:04:31.3]} 15. Nd5 {[%clk
0:04:06.9]} 15... Qf2+ {[%clk 0:04:26.9]} 16. Kxf2 {[%clk 0:04:03]} 16... c6
{[%clk 0:04:23.4]} 17. Ne7+ {[%clk 0:03:55.3]} 17... Kh8 {[%clk 0:04:21.6]} 18.
Nf5 {[%clk 0:03:49.7]} 18... Bxf5 {[%clk 0:04:20.4]} 19. exf5 {[%clk 0:03:47.8]}
19... Rfe8 {[%clk 0:04:18.9]} 20. Kg3 {[%clk 0:03:45.4]} 20... Re3+ {[%clk
0:04:16.9]} 21. Bf3 {[%clk 0:03:43.6]} 21... h6 {[%clk 0:04:11]} 22. h4 {[%clk
0:03:39.8]} 22... Kh7 {[%clk 0:04:09]} 23. h5 {[%clk 0:03:37.3]} 23... g6 {[%clk
0:04:06.8]} 24. hxg6+ {[%clk 0:03:30.6]} 24... fxg6 {[%clk 0:04:06.6]} 25. fxg6+
{[%clk 0:03:20.6]} 25... Kxg6 {[%clk 0:04:06.4]} 26. Qd2 {[%clk 0:03:18.2]}
26... Rf8 {[%clk 0:04:03.2]} 27. Rf1 {[%clk 0:03:14.4]} 27... c5 {[%clk
0:03:59.8]} 28. c3 {[%clk 0:03:05.9]} 28... b5 {[%clk 0:03:54.8]} 29. cxd4
{[%clk 0:02:54.7]} 29... cxd4 {[%clk 0:03:53.4]} 30. Qb4 {[%clk 0:02:48.1]}
30... Rf6 {[%clk 0:03:41.6]} 31. Qxb5 {[%clk 0:02:42.1]} 31... Kg7 {[%clk
0:03:31.4]} 32. Qd7+ {[%clk 0:02:32.2]} 32... Kg6 {[%clk 0:03:29.1]} 33. Qxa7
{[%clk 0:02:27.2]} 33... Rxd3 {[%clk 0:03:26.6]} 34. Qb8 {[%clk 0:02:01.6]}
34... Re6 {[%clk 0:03:14.7]} 35. Qg8+ {[%clk 0:01:57]} 35... Kf6 {[%clk
0:03:13.4]} 36. Qh8+ {[%clk 0:01:47.5]} 36... Kg6 {[%clk 0:03:11.5]} 37. Qg8+
{[%clk 0:01:40.3]} 37... Kf6 {[%clk 0:03:10]} 38. g5+ {[%clk 0:01:33.8]} 38...
hxg5 {[%clk 0:03:05.3]} 39. Qh8+ {[%clk 0:01:25.8]} 39... Kf5 {[%clk 0:03:00.2]}
40. Qh7+ {[%clk 0:01:22.2]} 40... Rg6 {[%clk 0:02:52.4]} 41. Qf7+ {[%clk
0:01:15]} 41... Rf6 {[%clk 0:02:48.9]} 42. Qd5+ {[%clk 0:01:12.8]} 42... Kg6
{[%clk 0:02:46.2]} 43. Qe4+ {[%clk 0:01:10.2]} 43... Rf5 {[%clk 0:02:44.2]} 44.
Qxd3 {[%clk 0:01:09.1]} 44... Kf6 {[%clk 0:02:42.7]} 45. Qxd4+ {[%clk 0:01:08]}
45... Kg6 {[%clk 0:02:42.4]} 46. Qxd6+ {[%clk 0:01:06.6]} 46... Kg7 {[%clk
0:02:41.8]} 47. Qe7+ {[%clk 0:01:02.4]} 47... Kg6 {[%clk 0:02:40.4]} 48. b4
{[%clk 0:00:56.6]} 48... Rb5 {[%clk 0:02:36.4]} 49. Be4+ {[%clk 0:00:51.4]}
49... Kh5 {[%clk 0:02:31.6]} 50. Qe8+ {[%clk 0:00:47.8]} 50... Kh6 {[%clk
0:02:29.6]} 51. Qxb5 {[%clk 0:00:46.4]} 51... Kg7 {[%clk 0:02:28.2]} 52. Qf5
{[%clk 0:00:44.9]} 52... Kh6 {[%clk 0:02:26.7]} 53. Qg6# {[%clk 0:00:43.9]} 1-0

[Event "Live Chess"]
[Site "Chess.com"]
[Date "2023.05.21"]
[Round "-"]
[White "SupremeTactician"]
[Black "Tushinskiy"]
[Result "1-0"]
[WhiteElo "2216"]
[BlackElo "2188"]
[TimeControl "300"]
[EndTime "3:51:53 PDT"]
[Termination "SupremeTactician won by resignation"]

1. e4 {[%clk 0:04:59.9]} 1... e5 {[%clk 0:04:54]} 2. Nf3 {[%clk 0:04:59]} 2...
d6 {[%clk 0:04:52]} 3. Nc3 {[%clk 0:04:58.1]} 3... Bg4 {[%clk 0:04:50.8]} 4. Be2
{[%clk 0:04:57.1]} 4... Nd7 {[%clk 0:04:47.4]} 5. d4 {[%clk 0:04:56.3]} 5...
Ngf6 {[%clk 0:04:45.2]} 6. dxe5 {[%clk 0:04:55.5]} 6... dxe5 {[%clk 0:04:45.1]}
7. Bg5 {[%clk 0:04:54]} 7... c6 {[%clk 0:04:43.4]} 8. h3 {[%clk 0:04:53.2]} 8...
Bh5 {[%clk 0:04:42.3]} 9. g4 {[%clk 0:04:52.2]} 9... Bg6 {[%clk 0:04:40.4]} 10.
Bd3 {[%clk 0:04:51.9]} 10... Bb4 {[%clk 0:04:38.3]} 11. Qe2 {[%clk 0:04:50]}
11... Qa5 {[%clk 0:04:36.6]} 12. Bd2 {[%clk 0:04:47.5]} 12... Nc5 {[%clk
0:04:33.2]} 13. Nxe5 {[%clk 0:04:44.6]} 13... O-O-O {[%clk 0:04:23.6]} 14. Nc4
{[%clk 0:04:39.7]} 14... Qc7 {[%clk 0:04:20.7]} 15. O-O-O {[%clk 0:04:37.2]}
15... Rhe8 {[%clk 0:04:17.7]} 16. f3 {[%clk 0:04:35.9]} 16... Nxd3+ {[%clk
0:04:11.2]} 17. cxd3 {[%clk 0:04:34.4]} 17... b5 {[%clk 0:04:04.9]} 18. Ne3
{[%clk 0:04:30]} 18... Qa5 {[%clk 0:04:03.8]} 19. Kb1 {[%clk 0:04:28.7]} 19...
Bxc3 {[%clk 0:03:50]} 20. Bxc3 {[%clk 0:04:28.6]} 20... b4 {[%clk 0:03:49.2]}
21. Bxf6 {[%clk 0:04:25.4]} 21... gxf6 {[%clk 0:03:47.9]} 22. Nc4 {[%clk
0:04:25.1]} 22... Qb5 {[%clk 0:03:44]} 23. Qe3 {[%clk 0:04:20.7]} 23... Kb7
{[%clk 0:03:41.6]} 24. Qf4 {[%clk 0:04:14]} 24... Re6 {[%clk 0:03:33.9]} 25. b3
{[%clk 0:04:08.7]} 25... a5 {[%clk 0:03:26.7]} 26. Rc1 {[%clk 0:04:06.4]} 26...
Rxd3 {[%clk 0:03:19.7]} 27. Rhd1 {[%clk 0:04:05.3]} 27... Rxd1 {[%clk
0:03:07.7]} 28. Rxd1 {[%clk 0:04:04.4]} 28... Qc5 {[%clk 0:03:06.2]} 29. Rd7+
{[%clk 0:04:02.2]} 29... Ka6 {[%clk 0:03:04.8]} 30. Qb8 {[%clk 0:03:50.8]} 30...
Qg1+ {[%clk 0:03:02.4]} 31. Kc2 {[%clk 0:03:49.4]} 31... Qf2+ {[%clk 0:02:57]}
32. Kc1 {[%clk 0:03:36.3]} 32... Qe1+ {[%clk 0:02:50.4]} 33. Kc2 {[%clk
0:03:31.2]} 33... Qc3+ {[%clk 0:02:43.7]} 34. Kb1 {[%clk 0:03:30.6]} 34... Qe1+
{[%clk 0:02:42.9]} 35. Kb2 {[%clk 0:03:28]} 35... Qc3+ {[%clk 0:02:39.2]} 36.
Kb1 {[%clk 0:03:27.4]} 36... Qe1+ {[%clk 0:02:38.4]} 37. Kc2 {[%clk 0:03:18.2]}
37... Qc3+ {[%clk 0:02:35.7]} 38. Kd1 {[%clk 0:03:08.9]} 38... Qxf3+ {[%clk
0:02:34.3]} 39. Kc1 {[%clk 0:03:08]} 39... Qf1+ {[%clk 0:02:27.2]} 40. Kb2
{[%clk 0:03:02.8]} 40... Qf2+ {[%clk 0:02:23.6]} 41. Nd2 {[%clk 0:03:01.3]}
41... Qb6 {[%clk 0:02:01.4]} 42. Qa8+ {[%clk 0:02:58.9]} 42... Kb5 {[%clk
0:02:00.1]} 43. Rb7 {[%clk 0:02:58.2]} 43... Bxe4 {[%clk 0:01:55]} 44. Rxb6+
{[%clk 0:02:57]} 44... Kxb6 {[%clk 0:01:54.9]} 45. Qb8+ {[%clk 0:02:46.9]} 45...
Kc5 {[%clk 0:01:51.7]} 46. Qa7+ {[%clk 0:02:45.9]} 46... Kb5 {[%clk 0:01:47.7]}
47. Qb7+ {[%clk 0:02:38.6]} 47... Kc5 {[%clk 0:01:46.1]} 48. Qa6 {[%clk
0:02:34]} 48... Bd5 {[%clk 0:01:42.1]} 49. Qxa5+ {[%clk 0:02:31]} 49... Kd4
{[%clk 0:01:41.2]} 50. Qxb4+ {[%clk 0:02:28.1]} 50... Kd3 {[%clk 0:01:40.4]} 51.
Qc3+ {[%clk 0:02:24.9]} 51... Ke2 {[%clk 0:01:39.4]} 52. Nc4 {[%clk 0:02:23.7]}
52... Re4 {[%clk 0:01:36.2]} 53. Qd2+ {[%clk 0:02:18.1]} 53... Kf3 {[%clk
0:01:33.2]} 54. Qd3+ {[%clk 0:02:12.7]} 54... Kf4 {[%clk 0:01:29.6]} 55. a4
{[%clk 0:02:08.5]} 1-0

[Event "Live Chess"]
[Site "Chess.com"]
[Date "2023.05.21"]
[Round "-"]
[White "f4nomore"]
[Black "HadesLearmonth"]
[Result "0-1"]
[WhiteElo "1403"]
[BlackElo "1197"]
[TimeControl "300"]
[EndTime "3:52:03 PDT"]
[Termination "HadesLearmonth won by checkmate"]

1. b3 {[%clk 0:04:58.5]} 1... e5 {[%clk 0:04:58.3]} 2. Bb2 {[%clk 0:04:56.8]}
2... Nc6 {[%clk 0:04:55.5]} 3. e3 {[%clk 0:04:56.7]} 3... d5 {[%clk 0:04:54.4]}
4. Nc3 {[%clk 0:04:50.3]} 4... Nf6 {[%clk 0:04:52.5]} 5. Nge2 {[%clk 0:04:49.1]}
5... Bb4 {[%clk 0:04:50.8]} 6. g3 {[%clk 0:04:47.8]} 6... O-O {[%clk 0:04:49.8]}
7. Bg2 {[%clk 0:04:46.7]} 7... d4 {[%clk 0:04:45.8]} 8. exd4 {[%clk 0:04:44.7]}
8... exd4 {[%clk 0:04:44.6]} 9. Nb5 {[%clk 0:04:42.1]} 9... Ba5 {[%clk
0:04:36.7]} 10. Nbxd4 {[%clk 0:04:33.5]} 10... Nxd4 {[%clk 0:04:34.2]} 11. Bxd4
{[%clk 0:04:29.9]} 11... Ng4 {[%clk 0:04:23.1]} 12. O-O {[%clk 0:04:26.5]} 12...
Bd7 {[%clk 0:04:14.3]} 13. Bxb7 {[%clk 0:04:16.4]} 13... Rb8 {[%clk 0:04:02.6]}
14. Bg2 {[%clk 0:04:02]} 14... Bb5 {[%clk 0:03:58.1]} 15. c4 {[%clk 0:03:53.9]}
15... Bd7 {[%clk 0:03:51.5]} 16. Nc3 {[%clk 0:03:48.5]} 16... Bxc3 {[%clk
0:03:40.9]} 17. Bxc3 {[%clk 0:03:44.6]} 17... Qg5 {[%clk 0:03:33.4]} 18. f4
{[%clk 0:03:35.3]} 18... Qh6 {[%clk 0:03:30.4]} 19. d4 {[%clk 0:03:30.9]} 19...
Qxh2# {[%clk 0:03:28.7]} 0-1

[Event "Live Chess"]
[Site "Chess.com"]
[Date "2023.05.21"]
[Round "-"]
[White "AttackingSnowLeopard"]
[Black "WilliamofOrange16th"]
[Result "1-0"]
[WhiteElo "2159"]
[BlackElo "1879"]
[TimeControl "300"]
[EndTime "3:52:07 PDT"]
[Termination "AttackingSnowLeopard won by resignation"]

1. d4 {[%clk 0:04:58.7]} 1... d5 {[%clk 0:04:58.6]} 2. c4 {[%clk 0:04:58.3]}
2... c6 {[%clk 0:04:57.6]} 3. Nf3 {[%clk 0:04:57.7]} 3... Nf6 {[%clk 0:04:56.6]}
4. e3 {[%clk 0:04:57.4]} 4... a6 {[%clk 0:04:55.7]} 5. b3 {[%clk 0:04:56.1]}
5... Bf5 {[%clk 0:04:54.6]} 6. Bd3 {[%clk 0:04:54.5]} 6... Bxd3 {[%clk
0:04:53.2]} 7. Qxd3 {[%clk 0:04:54.1]} 7... e6 {[%clk 0:04:52.8]} 8. Nc3 {[%clk
0:04:53.7]} 8... Bd6 {[%clk 0:04:51.9]} 9. Bb2 {[%clk 0:04:52.9]} 9... O-O
{[%clk 0:04:50.4]} 10. O-O {[%clk 0:04:52.5]} 10... Nbd7 {[%clk 0:04:47.6]} 11.
e4 {[%clk 0:04:51.7]} 11... dxe4 {[%clk 0:04:46.8]} 12. Nxe4 {[%clk 0:04:50.1]}
12... Nxe4 {[%clk 0:04:46.1]} 13. Qxe4 {[%clk 0:04:50]} 13... Nf6 {[%clk
0:04:45.4]} 14. Qh4 {[%clk 0:04:49.4]} 14... Be7 {[%clk 0:04:32.1]} 15. Qg3
{[%clk 0:04:46.6]} 15... Kh8 {[%clk 0:04:30.5]} 16. Ne5 {[%clk 0:04:43.4]} 16...
Ne4 {[%clk 0:04:17.5]} 17. Qe3 {[%clk 0:04:37.5]} 17... Nf6 {[%clk 0:04:11.2]}
18. Rad1 {[%clk 0:04:26.7]} 18... Nd7 {[%clk 0:04:01.6]} 19. f4 {[%clk
0:04:11.3]} 19... Bf6 {[%clk 0:03:58.8]} 20. Qe4 {[%clk 0:04:03.8]} 20... Qc7
{[%clk 0:03:57.4]} 21. Kh1 {[%clk 0:03:59.7]} 21... g6 {[%clk 0:03:55]} 22. d5
{[%clk 0:03:47.9]} 22... exd5 {[%clk 0:03:50]} 23. cxd5 {[%clk 0:03:41.6]} 23...
cxd5 {[%clk 0:03:48]} 24. Qxd5 {[%clk 0:03:36.1]} 24... Nxe5 {[%clk 0:03:29.7]}
25. fxe5 {[%clk 0:03:34.7]} 25... Bg7 {[%clk 0:03:28]} 26. Rc1 {[%clk
0:03:27.1]} 26... Qe7 {[%clk 0:03:25.5]} 27. Bd4 {[%clk 0:03:15.8]} 27... Qe6
{[%clk 0:03:17]} 28. Qxe6 {[%clk 0:03:10.9]} 28... fxe6 {[%clk 0:03:16.9]} 29.
Rxf8+ {[%clk 0:03:09.7]} 29... Rxf8 {[%clk 0:03:15.3]} 30. g3 {[%clk 0:03:09]}
30... Rd8 {[%clk 0:03:07.8]} 31. Bb6 {[%clk 0:03:00.7]} 31... Re8 {[%clk
0:02:59.1]} 32. Rc7 {[%clk 0:02:53.7]} 32... Bxe5 {[%clk 0:02:54.3]} 33. Rxb7
{[%clk 0:02:53.2]} 33... Bc3 {[%clk 0:02:47.8]} 34. Kg2 {[%clk 0:02:51.3]} 34...
e5 {[%clk 0:02:45.8]} 35. Kf3 {[%clk 0:02:47.9]} 35... e4+ {[%clk 0:02:42]} 36.
Ke2 {[%clk 0:02:47.5]} 36... Re6 {[%clk 0:02:18.2]} 37. Rc7 {[%clk 0:02:41.8]}
37... Rxb6 {[%clk 0:02:12.4]} 38. Rxc3 {[%clk 0:02:40]} 38... Kg7 {[%clk
0:02:11.9]} 39. Ke3 {[%clk 0:02:38.7]} 39... Rd6 {[%clk 0:02:08.4]} 40. Rc2
{[%clk 0:02:36.2]} 40... Re6 {[%clk 0:02:02.2]} 41. Re2 {[%clk 0:02:33.2]} 41...
Kf6 {[%clk 0:02:00.4]} 42. Kf4 {[%clk 0:02:32.3]} 42... g5+ {[%clk 0:01:58.7]}
43. Ke3 {[%clk 0:02:30.5]} 43... Ke5 {[%clk 0:01:57.1]} 44. Rc2 {[%clk
0:02:28.2]} 44... Rd6 {[%clk 0:01:53.7]} 45. Rc5+ {[%clk 0:02:26.3]} 45... Rd5
{[%clk 0:01:52.8]} 46. Rxd5+ {[%clk 0:02:22.5]} 46... Kxd5 {[%clk 0:01:52.3]}
47. g4 {[%clk 0:02:14.9]} 47... h6 {[%clk 0:01:50.1]} 48. h3 {[%clk 0:02:13.9]}
48... a5 {[%clk 0:01:48.8]} 49. a3 {[%clk 0:02:12.9]} 49... Ke5 {[%clk
0:01:47.5]} 50. b4 {[%clk 0:02:11.9]} 50... axb4 {[%clk 0:01:46.5]} 51. axb4
{[%clk 0:02:11.5]} 51... Kd5 {[%clk 0:01:45.4]} 52. b5 {[%clk 0:02:11]} 52...
Kc5 {[%clk 0:01:43.2]} 53. Kxe4 {[%clk 0:02:10.5]} 53... Kxb5 {[%clk 0:01:42.6]}
54. Kf5 {[%clk 0:02:10.1]} 54... Kc5 {[%clk 0:01:41.9]} 55. Kg6 {[%clk
0:02:09.2]} 55... Kd5 {[%clk 0:01:41.3]} 56. Kxh6 {[%clk 0:02:08.5]} 1-0